bitfinex/quotes_SOLUSD_20230401
["timestamp","ask_amount","ask_price","bid_price","bid_amount"]
[1680375090568,10.0,20.937,20.924,20.0]
[1680375090874,10.0,20.937,20.925,10.0]
[1680375091066,10.0,20.937,20.926,20.0]
[1680375094179,10.0,20.939,20.926,20.0]
[1680375097377,17.0,20.938,20.926,20.0]
[1680375097768,10.0,20.937,20.926,20.0]
[1680375097968,10.0,20.937,20.923,20.0]
[1680375098386,10.0,20.937,20.924,10.0]
[1680375098583,10.0,20.937,20.925,20.0]
[1680375102480,10.0,20.939,20.925,20.0]
[1680375103987,10.0,20.939,20.926,10.0]
[1680375107287,20.0,20.945,20.927,17.0]
[1680375107490,20.0,20.945,20.928,20.0]
[1680375107788,109.7244,20.954,20.933,23.885]
[1680375108088,109.7244,20.954,20.935,10.0]
[1680375108089,10.0,20.953,20.935,10.0]
[1680375108291,10.0,20.953,20.936,17.0]
[1680375108592,10.0,20.953,20.937,20.0]
[1680375108980,10.0,20.953,20.938,10.0]
[1680375109179,17.0,20.952,20.938,10.0]
[1680375109776,10.0,20.951,20.938,10.0]
[1680375110993,10.0,20.951,20.939,17.0]
[1680375112600,10.0,20.951,20.937,30.0]
[1680375112783,17.0,20.95,20.937,20.0]
[1680375112987,10.0,20.949,20.936,20.0]
[1680375113999,10.0,20.947,20.934,30.0]
[1680375116995,10.0,20.947,20.935,10.0]
[1680375117196,17.0,20.948,20.937,10.0]
[1680375118900,17.0,20.948,20.935,10.0]
[1680375119098,17.0,20.948,20.936,20.0]
[1680375120589,17.0,20.948,20.933,114.8771]
[1680375120785,20.0,20.947,20.929,108.2374]
[1680375120989,10.0,20.946,20.924,10.0]
[1680375121189,17.0,20.945,20.925,20.0]
[1680375121694,10.0,20.944,20.926,10.0]
[1680375121896,10.0,20.942,20.926,10.0]
[1680375123411,10.0,20.942,20.928,10.0]
[1680375125196,10.0,20.943,20.928,10.0]
[1680375125498,10.0,20.943,20.93,10.0]
[1680375129212,124.7986,20.944,20.93,10.0]
[1680375138300,124.7986,20.944,20.931,17.0]
[1680375153328,114.7986,20.944,20.931,17.0]
[1680375158432,10.0,20.943,20.929,17.0]
[1680375159524,114.7986,20.944,20.929,17.0]
[1680375159832,114.7986,20.944,20.93,10.0]
[1680375160030,114.7986,20.944,20.932,10.0]
[1680375162434,114.7986,20.944,20.934,10.0]
[1680375168039,114.7986,20.944,20.932,10.0]
[1680375168240,114.7986,20.944,20.933,17.0]
[1680375174028,10.0,20.943,20.933,17.0]
[1680375176143,114.7986,20.944,20.933,17.0]
[1680375179440,114.7986,20.944,20.932,10.0]
[1680375180444,10.0,20.943,20.932,10.0]
[1680375181049,10.0,20.943,20.93,10.0]
[1680375181247,10.0,20.943,20.931,17.0]
[1680375185259,10.0,20.943,20.915,47.81]
[1680375185640,10.0,20.943,20.927,17.0]
[1680375186355,17.0,20.942,20.921,47.04503652]
[1680375186555,10.0,20.941,20.921,47.04503652]
[1680375192666,21.73,20.94,20.921,47.04503652]
[1680375193561,21.73,20.94,20.925,20.0]
[1680375193859,17.0,20.939,20.925,20.0]
[1680375194061,10.0,20.938,20.924,20.0]
[1680375203364,10.0,20.938,20.925,10.0]
[1680375208447,10.0,20.939,20.925,10.0]
[1680375209759,27.18,20.94,20.925,10.0]
[1680375214874,10.0,20.938,20.925,10.0]
[1680375216370,10.0,20.939,20.925,10.0]
[1680375216558,10.0,20.943,20.926,17.0]
[1680375216759,10.0,20.943,20.927,10.0]
[1680375216974,114.7986,20.944,20.928,17.0]
[1680375217555,114.7986,20.944,20.929,10.0]
[1680375218972,10.0,20.943,20.929,10.0]
[1680375224476,114.7986,20.944,20.929,10.0]
[1680375226567,114.7986,20.944,20.93,17.0]
[1680375226868,114.7986,20.944,20.931,10.0]
[1680375235387,114.7986,20.944,20.932,17.0]
[1680375235588,114.7986,20.944,20.933,10.0]
[1680375241081,114.7986,20.944,20.931,10.0]
[1680375241382,114.7986,20.944,20.929,10.0]
[1680375241583,10.0,20.943,20.93,17.0]
[1680375251183,10.0,20.943,20.923,58.2630429]
[1680375251390,10.0,20.941,20.923,58.2630429]
[1680375252282,10.0,20.943,20.923,58.2630429]
[1680375252487,10.0,20.943,20.927,17.0]
[1680375252687,10.0,20.943,20.928,10.0]
[1680375252898,10.0,20.943,20.929,17.0]
[1680375253201,10.0,20.943,20.93,10.0]
[1680375254604,114.7986,20.944,20.93,10.0]
[1680375257002,10.0,20.943,20.93,10.0]
[1680375257403,10.0,20.943,20.93,31.73]
[1680375259202,114.7986,20.944,20.93,31.73]
[1680375259405,114.7986,20.944,20.931,17.0]
[1680375259604,114.7986,20.944,20.932,10.0]
[1680375259789,114.7986,20.944,20.933,17.0]
[1680375269498,114.7986,20.944,20.934,10.0]
[1680375279007,114.7986,20.944,20.935,20.0]
[1680375284713,114.7986,20.944,20.936,27.0]
[1680375290319,21.69,20.95,20.936,27.0]
[1680375296925,10.0,20.949,20.936,17.0]
[1680375297532,10.0,20.949,20.935,34.51899059]
[1680375297825,10.0,20.949,20.936,10.0]
[1680375298831,10.0,20.949,20.938,10.0]
[1680375299712,10.0,20.949,20.939,17.0]
[1680375299915,21.69,20.95,20.939,17.0]
[1680375302332,109.7881,20.953,20.939,17.0]
[1680375302333,109.7881,20.953,20.941,10.0]
[1680375302634,109.7881,20.953,20.942,17.0]
[1680375304639,109.7881,20.953,20.938,10.0]
[1680375304932,10.0,20.952,20.938,10.0]
[1680375306317,10.0,20.952,20.939,17.0]
[1680375307134,21.64,20.95,20.939,17.0]
[1680375314140,21.64,20.95,20.938,10.0]
[1680375314327,21.64,20.95,20.939,17.0]
[1680375320449,10.0,20.952,20.939,17.0]
[1680375321746,10.0,20.954,20.939,17.0]
[1680375321747,10.0,20.954,20.94,10.0]
[1680375321945,77.4707,20.955,20.941,17.0]
[1680375322744,77.4707,20.955,20.942,10.0]
[1680375323048,77.4707,20.955,20.943,17.0]
[1680375325549,10.0,20.954,20.943,17.0]
[1680375325946,10.0,20.954,20.931,10.0]
[1680375326950,21.69,20.95,20.931,10.0]
[1680375327451,21.69,20.95,20.937,17.0]
[1680375327644,21.69,20.95,20.938,10.0]
[1680375327846,87.4707,20.955,20.939,17.0]
[1680375328045,87.4707,20.955,20.94,10.0]
[1680375328236,87.4707,20.955,20.941,17.0]
[1680375328636,87.4707,20.955,20.942,10.0]
[1680375328940,87.4707,20.955,20.943,17.0]
[1680375331555,10.0,20.954,20.943,17.0]
[1680375337157,87.4707,20.955,20.943,17.0]
[1680375337757,10.0,20.954,20.943,17.0]
[1680375344351,10.0,20.954,20.944,17.0]
[1680375344551,10.0,20.954,20.941,17.0]
[1680375345564,77.4707,20.955,20.941,17.0]
[1680375345766,77.4707,20.955,20.942,10.0]
[1680375345952,77.4707,20.955,20.943,17.0]
[1680375354260,23.862,20.954,20.943,17.0]
[1680375359476,23.862,20.954,20.945,17.0]
[1680375359973,77.4707,20.955,20.945,17.0]
[1680375360169,10.0,20.954,20.945,17.0]
[1680375362478,10.0,20.954,20.94,21.73]
[1680375363773,10.0,20.954,20.941,17.0]
[1680375367280,10.0,20.954,20.941,10.0]
[1680375367489,10.0,20.954,20.942,17.0]
[1680375368064,87.4707,20.955,20.942,17.0]
[1680375368065,77.4707,20.955,20.942,17.0]
[1680375368283,23.859,20.956,20.943,10.0]
[1680375368467,23.859,20.956,20.944,37.0]
[1680375368782,23.859,20.956,20.945,10.0]
[1680375369078,23.859,20.956,20.946,20.0]
[1680375370472,10.0,20.957,20.946,20.0]
[1680375374283,10.0,20.958,20.947,17.0]
[1680375374678,10.0,20.958,20.946,20.0]
[1680375375088,23.86,20.956,20.934,56.92532218]
[1680375375395,21.64,20.95,20.93,111.1888]
[1680375375681,10.0,20.949,20.931,20.0]
[1680375375885,17.0,20.948,20.931,20.0]
[1680375376071,10.0,20.947,20.931,20.0]
[1680375376775,10.0,20.947,20.932,10.0]
[1680375376974,10.0,20.947,20.933,20.0]
[1680375377166,45.507,20.95,20.935,10.0]
[1680375377372,45.507,20.95,20.936,37.0]
[1680375377373,51.017,20.95,20.936,37.0]
[1680375377585,27.15,20.95,20.937,10.0]
[1680375377772,27.15,20.95,20.938,17.0]
[1680375379579,10.0,20.953,20.939,10.0]
[1680375379783,10.0,20.953,20.94,17.0]
[1680375380881,10.0,20.953,20.941,10.0]
[1680375381086,7.17215888,20.954,20.941,10.0]
[1680375381289,236.7974,20.955,20.942,17.0]
[1680375381787,10.0,20.954,20.942,17.0]
[1680375383386,117.2165,20.955,20.942,17.0]
[1680375384890,117.2165,20.955,20.943,10.0]
[1680375385098,117.2165,20.955,20.944,17.0]
[1680375389386,117.2165,20.955,20.946,10.0]
[1680375390993,117.2165,20.955,20.945,20.0]
[1680375391196,117.2165,20.955,20.946,17.0]
[1680375407192,117.2165,20.955,20.945,20.0]
[1680375407391,117.2165,20.955,20.944,20.0]
[1680375407593,10.0,20.954,20.944,20.0]
[1680375408324,27.15,20.95,20.934,10.0]
[1680375408612,10.0,20.949,20.936,20.0]
[1680375409403,27.15,20.95,20.936,20.0]
[1680375409714,10.0,20.952,20.937,27.0]
[1680375410817,17.17215888,20.954,20.937,27.0]
[1680375413321,77.805,20.96,20.937,27.0]
[1680375413511,50.815,20.96,20.939,10.0]
[1680375413717,50.815,20.96,20.94,37.0]
[1680375413917,50.815,20.96,20.941,10.0]
[1680375414118,50.815,20.96,20.942,17.0]
[1680375414324,10.0,20.954,20.943,20.0]
[1680375414629,10.0,20.954,20.944,17.0]
[1680375414922,10.0,20.954,20.945,20.0]
[1680375417124,50.815,20.96,20.945,20.0]
[1680375417304,50.815,20.96,20.946,17.0]
[1680375418120,26.96,20.96,20.946,17.0]
[1680375428938,10.0,20.954,20.945,20.0]
[1680375429145,10.0,20.954,20.942,20.0]
[1680375430139,26.96,20.96,20.944,10.0]
[1680375430435,26.96,20.96,20.945,37.0]
[1680375434442,10.0,20.954,20.945,20.0]
[1680375434941,10.0,20.954,20.941,10.0]
[1680375435142,10.0,20.954,20.942,20.0]
[1680375435535,10.0,20.954,20.939,10.0]
[1680375435938,10.0,20.954,20.934,10.0]
[1680375436140,10.0,20.952,20.934,10.0]
[1680375437331,10.0,20.952,20.936,20.0]
[1680375438248,10.0,20.952,20.937,10.0]
[1680375438931,10.0,20.952,20.938,17.0]
[1680375441251,117.2165,20.955,20.939,10.0]
[1680375441547,117.2165,20.955,20.94,17.0]
[1680375441738,117.2165,20.955,20.941,10.0]
[1680375441938,117.2165,20.955,20.942,17.0]
[1680375442945,10.0,20.954,20.942,17.0]
[1680375444349,117.2165,20.955,20.942,17.0]
[1680375444539,117.2165,20.955,20.943,20.0]
[1680375444734,117.2165,20.955,20.944,17.0]
[1680375444939,117.2165,20.955,20.945,20.0]
[1680375445150,117.2165,20.955,20.946,17.0]
[1680375445352,10.0,20.954,20.946,17.0]
[1680375446246,10.0,20.954,20.945,20.0]
[1680375446555,10.0,20.954,20.942,20.0]
[1680375446744,10.0,20.954,20.943,17.0]
[1680375446944,10.0,20.954,20.944,20.0]
[1680375447149,117.2165,20.955,20.945,17.0]
[1680375447350,117.2165,20.955,20.946,20.0]
[1680375451443,10.0,20.954,20.938,20.0]
[1680375451648,10.0,20.954,20.939,10.0]
[1680375451848,10.0,20.954,20.94,20.0]
[1680375452145,10.0,20.954,20.941,10.0]
[1680375452445,10.0,20.954,20.942,20.0]
[1680375452645,10.0,20.954,20.943,17.0]
[1680375453155,124.38865888,20.955,20.945,10.0]
[1680375453346,117.2165,20.955,20.946,37.0]
[1680375455661,10.0,20.954,20.946,20.0]
[1680375455958,10.0,20.954,20.942,20.0]
[1680375456159,10.0,20.954,20.943,17.0]
[1680375456354,10.0,20.954,20.944,20.0]
[1680375456556,10.0,20.954,20.945,17.0]
[1680375456958,10.0,20.954,20.946,20.0]
[1680375457556,117.2165,20.955,20.946,20.0]
[1680375460971,10.0,20.954,20.946,20.0]
[1680375471969,117.2165,20.955,20.946,20.0]
[1680375473276,124.38865888,20.955,20.946,20.0]
[1680375473480,10.0,20.954,20.94,20.0]
[1680375473682,10.0,20.954,20.936,10.0]
[1680375474382,10.0,20.954,20.936,122.8252]
[1680375474590,10.0,20.954,20.94,17.0]
[1680375475870,10.0,20.954,20.941,10.0]
[1680375476071,124.38865888,20.955,20.943,10.0]
[1680375476280,117.2165,20.955,20.943,10.0]
[1680375476485,117.2165,20.955,20.944,17.0]
[1680375478785,10.0,20.954,20.941,10.0]
[1680375478983,10.0,20.954,20.942,17.0]
[1680375483381,10.0,20.954,20.924,409.73607472]
[1680375483382,17.0,20.953,20.927,19.103506]
[1680375483575,23.864,20.952,20.936,20.0]
[1680375483893,10.0,20.95,20.936,20.0]
[1680375484280,10.0,20.95,20.935,20.0]
[1680375484795,17.17215888,20.95,20.936,17.0]
[1680375485889,17.17215888,20.95,20.935,20.0]
[1680375486094,10.0,20.948,20.935,20.0]
[1680375486296,17.0,20.947,20.935,20.0]
[1680375486600,10.0,20.948,20.935,20.0]
[1680375486773,10.0,20.946,20.935,20.0]
[1680375490889,10.0,20.948,20.936,17.0]
[1680375493295,10.0,20.948,20.935,20.0]
[1680375493496,10.0,20.948,20.934,20.0]
[1680375493697,10.0,20.948,20.935,17.0]
[1680375493891,10.0,20.948,20.936,20.0]
[1680375497592,10.0,20.948,20.934,20.0]
[1680375503305,17.0,20.947,20.934,20.0]
[1680375503491,10.0,20.946,20.934,20.0]
[1680375506805,10.0,20.946,20.934,30.0]
[1680375508608,10.0,20.946,20.936,10.0]
[1680375512512,10.0,20.948,20.936,10.0]
[1680375514614,10.0,20.948,20.935,10.0]
[1680375514805,21.72,20.95,20.936,37.0]
[1680375515010,21.72,20.95,20.937,10.0]
[1680375515199,21.72,20.95,20.938,17.0]
[1680375515615,21.72,20.95,20.939,10.0]
[1680375517405,10.0,20.951,20.939,10.0]
[1680375522903,77.90725308,20.956,20.939,10.0]
[1680375533411,77.90725308,20.956,20.938,17.0]
[1680375539634,77.90725308,20.956,20.937,10.0]
[1680375539835,10.0,20.95,20.937,10.0]
[1680375540029,10.0,20.95,20.936,20.0]
[1680375540623,10.0,20.95,20.937,10.0]
[1680375541221,77.90725308,20.956,20.937,10.0]
[1680375541422,54.04825308,20.956,20.939,10.0]
[1680375541623,10.0,20.957,20.94,17.0]
[1680375542132,10.0,20.957,20.941,10.0]
[1680375542328,10.0,20.957,20.942,17.0]
[1680375542534,10.0,20.957,20.943,10.0]
[1680375549538,7.17215888,20.958,20.943,10.0]
[1680375549735,26.87,20.96,20.944,17.0]
[1680375549929,26.87,20.96,20.945,20.0]
[1680375550244,26.87,20.96,20.946,27.0]
[1680375551923,10.0,20.958,20.946,27.0]
[1680375554741,10.0,20.959,20.946,27.0]
[1680375555243,36.87,20.96,20.946,27.0]
[1680375555436,26.87,20.96,20.946,27.0]
[1680375560053,10.0,20.962,20.946,27.0]
[1680375560231,27.0,20.965,20.947,23.869]
[1680375560542,27.0,20.965,20.946,27.0]
[1680375565942,27.0,20.965,20.951,10.0]
[1680375566137,27.0,20.965,20.952,37.0]
[1680375566337,27.0,20.965,20.953,10.0]
[1680375566538,27.0,20.965,20.955,10.0]
[1680375566741,27.0,20.965,20.956,20.0]
[1680375566936,27.0,20.965,20.957,10.0]
[1680375568641,77.959,20.966,20.957,10.0]
[1680375570350,77.959,20.966,20.956,20.0]
[1680375570559,77.959,20.966,20.957,17.0]
[1680375581651,10.0,20.965,20.956,20.0]
[1680375581852,10.0,20.965,20.954,20.0]
[1680375582066,10.0,20.965,20.955,17.0]
[1680375582265,10.0,20.965,20.956,20.0]
[1680375582850,10.0,20.965,20.954,20.0]
[1680375583052,10.0,20.965,20.955,17.0]
[1680375583251,10.0,20.965,20.956,20.0]
[1680375583765,87.959,20.966,20.957,10.0]
[1680375583766,77.959,20.966,20.957,10.0]
[1680375584071,77.959,20.966,20.957,27.0]
[1680375585464,77.959,20.966,20.95,10.0]
[1680375585465,10.0,20.964,20.95,10.0]
[1680375586958,10.0,20.964,20.951,17.0]
[1680375589567,10.0,20.964,20.947,10.0]
[1680375589868,10.0,20.964,20.949,17.0]
[1680375592359,10.0,20.964,20.95,10.0]
[1680375592754,10.0,20.964,20.951,17.0]
[1680375593252,10.0,20.964,20.948,23.9529086]
[1680375593452,17.0,20.963,20.947,10.0]
[1680375593764,27.11,20.96,20.946,10.0]
[1680375594269,10.0,20.959,20.946,10.0]
[1680375594570,10.0,20.959,20.941,10.0]
[1680375594866,10.0,20.957,20.943,10.0]
[1680375595056,10.0,20.957,20.944,20.0]
[1680375600957,17.17215888,20.959,20.944,20.0]
[1680375601169,10.0,20.959,20.945,17.0]
[1680375602964,10.0,20.959,20.947,17.0]
[1680375603376,27.11,20.96,20.947,17.0]
[1680375603566,27.11,20.96,20.944,128.6377]
[1680375603771,10.0,20.959,20.944,128.6377]
[1680375603977,10.0,20.959,20.945,10.0]
[1680375604180,10.0,20.959,20.946,20.0]
[1680375604886,10.0,20.959,20.947,17.0]
[1680375607171,10.0,20.959,20.946,20.0]
[1680375608986,10.0,20.959,20.947,17.0]
[1680375610280,10.0,20.959,20.948,10.0]
[1680375610878,10.0,20.959,20.949,17.0]
[1680375611478,7.17215888,20.96,20.949,17.0]
[1680375612380,7.17215888,20.96,20.947,10.0]
[1680375612570,7.17215888,20.96,20.948,17.0]
[1680375616187,7.17215888,20.96,20.946,20.0]
[1680375616404,17.0,20.959,20.946,20.0]
[1680375616776,24.17215888,20.959,20.946,20.0]
[1680375617089,10.0,20.958,20.946,20.0]
[1680375619278,10.0,20.956,20.945,20.0]
[1680375626590,10.0,20.956,20.946,17.0]
[1680375629686,10.0,20.958,20.946,17.0]
[1680375632501,10.0,20.958,20.946,27.0]
[1680375635104,10.0,20.958,20.946,17.0]
[1680375636509,26.93,20.96,20.946,17.0]
[1680375637013,159.94045888,20.964,20.947,10.0]
[1680375637306,159.94045888,20.964,20.949,10.0]
[1680375637514,159.94045888,20.964,20.95,17.0]
[1680375639390,136.09045888,20.964,20.95,17.0]
[1680375639597,17.17215888,20.964,20.95,17.0]
[1680375640604,10.0,20.964,20.95,17.0]
[1680375643314,17.0,20.963,20.948,10.0]
[1680375643494,17.0,20.963,20.947,124.241]
[1680375643495,17.0,20.963,20.947,114.241]
[1680375643690,26.86,20.96,20.947,114.241]
[1680375643914,10.0,20.959,20.947,114.241]
[1680375646409,10.0,20.959,20.948,10.0]
[1680375650712,26.86,20.96,20.948,10.0]
[1680375652115,10.0,20.959,20.946,10.0]
[1680375652297,10.0,20.959,20.947,17.0]
[1680375653712,10.0,20.959,20.948,10.0]
[1680375654103,26.86,20.96,20.948,10.0]
[1680375654315,26.86,20.96,20.949,17.0]
[1680375654697,10.0,20.964,20.949,17.0]
[1680375654917,10.0,20.964,20.95,10.0]
[1680375655121,10.0,20.964,20.951,17.0]
[1680375655421,10.0,20.964,20.952,10.0]
[1680375656614,30.0,20.965,20.952,10.0]
[1680375658603,20.0,20.965,20.952,10.0]
[1680375658804,77.959,20.966,20.954,10.0]
[1680375659003,77.959,20.966,20.955,37.0]
[1680375659303,77.959,20.966,20.956,10.0]
[1680375660718,77.959,20.966,20.955,37.0]
[1680375664332,75.92987556,20.967,20.955,37.0]
[1680375665005,75.92987556,20.967,20.955,20.0]
[1680375665206,10.0,20.966,20.955,20.0]
[1680375668920,10.0,20.966,20.953,20.0]
[1680375669124,10.0,20.966,20.954,17.0]
[1680375669322,10.0,20.966,20.955,20.0]
[1680375669523,20.0,20.965,20.951,111.3915]
[1680375669728,10.0,20.963,20.947,116.9379]
[1680375669923,17.0,20.962,20.947,116.9379]
[1680375670122,10.0,20.961,20.947,116.9379]
[1680375672132,10.0,20.961,20.948,24.56352317]
[1680375672332,10.0,20.961,20.948,10.0]
[1680375673030,17.0,20.962,20.948,10.0]
[1680375673233,10.0,20.964,20.95,10.0]
[1680375673611,20.0,20.965,20.95,10.0]
[1680375673816,118.7551,20.966,20.951,17.0]
[1680375674024,75.92987556,20.967,20.952,20.0]
[1680375674228,75.92987556,20.967,20.953,17.0]
[1680375674422,75.92987556,20.967,20.954,20.0]
[1680375674623,75.92987556,20.967,20.956,10.0]
[1680375674830,75.92987556,20.967,20.957,17.0]
[1680375679528,75.92987556,20.967,20.958,10.0]
[1680375679732,75.92987556,20.967,20.959,17.0]
[1680375681318,73.42987556,20.967,20.959,17.0]
[1680375682026,73.42987556,20.967,20.958,10.0]
[1680375682426,73.42987556,20.967,20.959,17.0]
[1680375687226,70.92987556,20.967,20.959,17.0]
[1680375689041,70.92987556,20.967,20.958,10.0]
[1680375689343,70.92987556,20.967,20.959,17.0]
[1680375697552,70.92987556,20.967,20.956,10.0]
[1680375697938,70.92987556,20.967,20.957,17.0]
[1680375739993,70.42987556,20.967,20.958,10.0]
[1680375740196,70.42987556,20.967,20.959,17.0]
[1680375740379,70.42987556,20.967,20.96,10.0]
[1680375740694,70.42987556,20.967,20.961,17.0]
[1680375745976,70.42987556,20.967,20.956,10.0]
[1680375745977,70.42987556,20.967,20.954,20.0]
[1680375746177,113.2454,20.966,20.952,20.0]
[1680375746377,10.0,20.965,20.952,20.0]
[1680375746889,21.65,20.96,20.948,24.61519316]
[1680375747092,10.0,20.959,20.948,14.61519316]
[1680375747295,10.0,20.959,20.945,10.0]
[1680375749492,21.65,20.96,20.945,10.0]
[1680375749793,21.65,20.96,20.947,17.0]
[1680375749994,21.65,20.96,20.948,10.0]
[1680375750192,21.65,20.96,20.949,17.0]
[1680375751888,21.65,20.96,20.95,10.0]
[1680375752192,21.65,20.96,20.952,10.0]
[1680375752395,27.13,20.96,20.953,17.0]
[1680375753595,27.13,20.96,20.948,10.0]
[1680375753794,27.13,20.96,20.949,17.0]
[1680375754997,10.0,20.964,20.95,10.0]
[1680375755190,10.0,20.964,20.951,17.0]
[1680375757000,27.13,20.96,20.951,17.0]
[1680375757182,27.13,20.96,20.949,17.0]
[1680375769907,27.13,20.96,20.95,10.0]
[1680375770108,27.13,20.96,20.951,17.0]
[1680375776809,27.13,20.96,20.948,14.53316902]
[1680375777105,27.13,20.96,20.937,21.71114833]
[1680375777296,27.13,20.96,20.945,20.0]
[1680375777496,10.0,20.959,20.945,20.0]
[1680375777915,10.0,20.959,20.945,30.0]
[1680375778415,10.0,20.959,20.946,17.0]
[1680375778916,44.15758606,20.958,20.937,14.55356227]
[1680375779115,26.95,20.95,20.934,19.096714]
[1680375779311,26.95,20.95,20.935,20.0]
[1680375779612,10.0,20.949,20.936,10.0]
[1680375780196,26.95,20.95,20.936,10.0]
[1680375780599,26.95,20.95,20.937,17.0]
[1680375781001,26.95,20.95,20.938,10.0]
[1680375781308,26.95,20.95,20.939,17.0]
[1680375784215,26.95,20.95,20.938,10.0]
[1680375784402,10.0,20.949,20.938,10.0]
[1680375787002,26.95,20.95,20.938,10.0]
[1680375787606,26.95,20.95,20.939,17.0]
[1680375787806,10.0,20.949,20.939,17.0]
[1680375788318,10.0,20.949,20.937,17.0]
[1680375788515,10.0,20.949,20.935,20.0]
[1680375788719,23.868,20.948,20.935,20.0]
[1680375788910,10.0,20.947,20.935,20.0]
[1680375790007,10.0,20.947,20.936,20.0]
[1680375790208,10.0,20.947,20.933,20.0]
[1680375792923,10.0,20.947,20.935,10.0]
[1680375793118,10.0,20.947,20.936,20.0]
[1680375795007,10.0,20.947,20.934,20.0]
[1680375806316,10.0,20.947,20.934,30.0]
[1680375806516,10.0,20.949,20.935,17.0]
[1680375806717,10.0,20.949,20.937,10.0]
[1680375807126,10.0,20.949,20.935,17.0]
[1680375807334,10.0,20.949,20.936,20.0]
[1680375809122,27.13,20.95,20.936,20.0]
[1680375809321,27.13,20.95,20.937,27.0]
[1680375809727,31.01658606,20.957,20.937,27.0]
[1680375810135,31.01658606,20.957,20.938,10.0]
[1680375810435,19.106174,20.954,20.939,37.0]
[1680375810832,19.106174,20.954,20.939,44.15758606]
[1680375811140,19.106174,20.954,20.941,10.0]
[1680375811329,19.106174,20.954,20.942,17.0]
[1680375811530,19.106174,20.954,20.943,20.0]
[1680375811723,19.106174,20.954,20.944,17.0]
[1680375811924,19.106174,20.954,20.945,30.0]
[1680375812118,19.106174,20.954,20.946,17.0]
[1680375813630,10.0,20.959,20.946,17.0]
[1680375815140,10.0,20.959,20.945,30.0]
[1680375816650,10.0,20.959,20.945,20.0]
[1680375816842,17.0,20.958,20.945,20.0]